fUSD/lending_fUSD_20260324
["ID","MTS","AMOUNT","RATE_DAILY","PERIOD"]
[408837993,1774338705937,-500.0,0.00041643,120]
[408837994,1774338705947,-500.0,0.00041643,120]
[408837995,1774338705957,-500.0,0.00041643,120]
[408837996,1774338705966,-500.0,0.00041643,120]
[408837997,1774338705976,-1503.53,0.00041643,120]
[408837998,1774338705986,-500.0,0.00041643,120]
[408837999,1774338705995,-1630.29,0.00041643,120]
[408838000,1774338706005,-500.0,0.00041643,120]
[408838001,1774338706015,-841.35,0.00041643,120]
[408838002,1774338706025,-500.0,0.00041643,120]
[408838003,1774338706035,-680.83,0.00041643,120]
[408838004,1774338706044,-673.28,0.00041643,120]
[408838005,1774338706054,-1387.91,0.00041643,120]
[408838006,1774338706064,-500.0,0.00041643,2]
[408838007,1774338706074,-500.0,0.00041643,120]
[408838008,1774338706083,-500.0,0.00041643,7]
[408838009,1774338706092,-500.0,0.00041643,120]
[408838010,1774338706102,-1280.15,0.00041643,120]
[408838011,1774338706113,-1687.32,0.00041643,120]
[408838012,1774338706122,-604.72,0.00041643,120]
[408838013,1774338706131,-553.79,0.00041643,120]
[408838014,1774338706141,-500.0,0.00041643,120]
[408838015,1774338706150,-500.0,0.00041643,120]
[408838016,1774338706160,-500.0,0.00041643,120]
[408838017,1774338706170,-500.0,0.00041643,120]
[408838018,1774338706179,-606.90266346,0.00041643,7]
[408838019,1774338706189,-500.0,0.00041643,120]
[408838020,1774338706198,-583.19,0.00041643,120]
[408838021,1774338706208,-500.0,0.00041643,120]
[408838022,1774338706218,-500.0,0.00041643,120]
[408838023,1774338706227,-500.0,0.00041643,120]
[408838024,1774338706237,-765.82,0.00041643,120]
[408838025,1774338706246,-500.0,0.00041643,120]
[408838026,1774338706256,-500.0,0.00041643,120]
[408838027,1774338706266,-500.0,0.00041643,120]
[408838028,1774338706276,-648.19233175,0.00041643,120]
[408838029,1774338706287,-2264.25,0.00041643,120]
[408838030,1774338706296,-500.0,0.00041643,120]
[408838031,1774338706308,-1037.3,0.00041643,30]
[408838032,1774338706318,-2339.0,0.00041643,120]
[408838033,1774338706328,-1021.05,0.00041643,120]
[408838034,1774338706338,-602.59,0.00041643,120]
[408838035,1774338706348,-1084.43,0.00041643,120]
[408838036,1774338706357,-500.0,0.00041643,120]
[408838037,1774338706368,-1040.73,0.00041643,120]
[408838038,1774338706381,-500.0,0.00041643,120]
[408838039,1774338706390,-500.0,0.00041643,120]
[408838040,1774338706400,-851.46,0.00041643,120]
[408838041,1774338706410,-1082.75,0.00041643,120]
[408838042,1774338706420,-1633.66,0.00041643,120]
[408838043,1774338706429,-4460.36,0.00041643,120]
[408838044,1774338706439,-500.0,0.00041643,120]
[408838045,1774338706448,-1090.06,0.00041643,120]
[408838046,1774338706460,-1298.83,0.00041643,120]
[408838047,1774338706470,-500.0,0.00041643,120]
[408838048,1774338706479,-545.35,0.00041643,120]
[408838049,1774338706489,-1399.28,0.00041643,120]
[408838050,1774338706498,-911.41,0.00041643,120]
[408838051,1774338706508,-4326.06,0.00041643,120]
[408838052,1774338706518,-637.83,0.00041643,120]
[408838053,1774338706527,-500.0,0.00041643,14]
[408838054,1774338706537,-863.52,0.00041643,60]
[408838055,1774338706547,-500.0,0.00041643,120]
[408838056,1774338706557,-150.89795393,0.00041643,120]
[408838057,1774338706567,-521.47,0.00041643,120]
[408838058,1774338706576,-1041.22,0.00041643,120]
[408838059,1774338706586,-500.0,0.00041643,120]
[408838060,1774338706595,-500.0,0.00041643,120]
[408838061,1774338706605,-500.0,0.00041643,120]
[408838062,1774338706615,-711.52,0.00041643,120]
[408838063,1774338706625,-2031.81,0.00041643,120]
[408838064,1774338706635,-790.74,0.00041643,120]
[408838065,1774338706644,-1067.59,0.00041643,120]
[408838066,1774338706654,-500.0,0.00041643,120]
[408838067,1774338706663,-500.0,0.00041643,120]
[408838068,1774338706673,-163.53735931,0.00041643,120]
[408838069,1774338706682,-1154.84,0.00041643,120]
[408838070,1774338706692,-1560.13,0.00041643,120]
[408838071,1774338706701,-500.0,0.00041643,120]
[408838072,1774338706711,-1104.3,0.00041643,120]
[408838073,1774338706721,-2348.54,0.00041643,120]
[408838074,1774338706731,-500.0,0.00041643,120]
[408838075,1774338706741,-500.0,0.00041643,120]
[408838076,1774338706751,-500.0,0.00041643,60]
[408838077,1774338706762,-1021.53,0.00041643,120]
[408838078,1774338706772,-541.43,0.00041643,120]
[408838079,1774338706782,-500.0,0.00041643,120]
[408838080,1774338706791,-592.83,0.00041643,120]
[408838081,1774338706802,-500.0,0.00041643,120]
[408838082,1774338706812,-500.0,0.00041643,120]
[408838083,1774338706823,-535.0,0.00041643,120]
[408838084,1774338706833,-858.21,0.00041643,120]
[408838085,1774338706843,-500.0,0.00041643,120]
[408838086,1774338706852,-500.0,0.00041643,120]
[408838087,1774338706866,-1539.96,0.00041643,120]
[408838088,1774338706875,-500.0,0.00041643,2]
[408838089,1774338706885,-500.0,0.00041643,120]
[408838090,1774338706894,-500.0,0.00041643,120]
[408838091,1774338706903,-519.74,0.00041643,120]
[408838092,1774338706913,-1598.49,0.00041643,120]
[408838093,1774338706924,-813.09,0.00041643,120]
[408838094,1774338706935,-2149.78,0.00041643,120]
[408838095,1774338706945,-500.0,0.00041643,120]
[408838096,1774338706955,-513.33,0.00041643,120]
[408838097,1774338706964,-500.0,0.00041643,120]
[408838098,1774338706973,-833.01,0.00041643,120]
[408838099,1774338706983,-500.0,0.00041643,120]
[408838100,1774338706992,-624.59705508,0.00041643,120]
[408838101,1774338707002,-500.0,0.00041643,120]
[408838102,1774338707011,-656.49,0.00041643,120]
[408838103,1774338707021,-500.0,0.00041643,120]
[408838104,1774338707030,-700.59,0.00041643,120]
[408838105,1774338707040,-500.0,0.00041643,120]
[408838106,1774338707050,-728.42,0.00041643,120]
[408838107,1774338707059,-500.0,0.00041643,120]
[408838108,1774338707069,-500.0,0.00041643,120]
[408838109,1774338707078,-500.0,0.00041643,120]
[408838110,1774338707088,-500.0,0.00041643,120]
[408838111,1774338707097,-500.0,0.00041643,120]
[408838112,1774338707106,-500.0,0.00041643,120]
[408838113,1774338707116,-600.3183702,0.00041643,120]
[408838114,1774338707126,-500.0,0.00041643,120]
[408838115,1774338707135,-500.0,0.00041643,120]
[408838116,1774338707145,-957.25,0.00041643,120]
[408838117,1774338707154,-1844.33,0.00041643,120]
[408838118,1774338707164,-500.0,0.00041643,120]
[408838119,1774338707174,-750.0,0.00041671,15]
[408838120,1774338707184,-1235.76,0.0004176,120]
[408838121,1774338707193,-442.5521352,0.00041796,120]
[408838122,1774338707203,-694.26523168,0.00041812,120]
[408838123,1774338707212,-485.91,0.00041817,30]
[408838124,1774338707319,-2404.0,0.000419,15]
[408838125,1774338707329,-2735.451747,0.00041916,60]
[408838126,1774338707339,-2735.45174699,0.00041916,60]
[408838127,1774338707347,-743.4779064,0.00041917,120]
[408838128,1774338707356,-590.67,0.00041917,120]
[408838129,1774338707368,-1000.0,0.00041917,120]
[408838130,1774338707378,-500.0,0.00041917,120]
[408838131,1774338707387,-500.0,0.00041917,120]
[408838132,1774338707396,-500.0,0.00041917,120]
[408838133,1774338707407,-500.0,0.00041917,120]
[408838134,1774338707416,-500.0,0.00041917,120]
[408838135,1774338707425,-500.0,0.00041917,120]
[408838136,1774338707435,-500.0,0.00041917,120]
[408838137,1774338707444,-335.32193513,0.00041917,120]
[408838138,1774338707453,-500.0,0.00041917,120]
[408838139,1774338707462,-161.41612629,0.00041917,120]
[408838140,1774338707471,-500.0,0.00041917,120]
[408838141,1774338707480,-500.0,0.00041917,120]
[408838142,1774338707490,-500.0,0.00041917,120]
[408838143,1774338707499,-500.0,0.00041917,120]
[408838144,1774338707508,-437.17595198,0.00041917,120]
[408838145,1774338707517,-625.13250355,0.00041917,120]
[408838146,1774338707526,-396.76547306,0.00041917,120]
[408838147,1774338707535,-500.0,0.00041917,120]
[408838148,1774338707544,-500.0,0.00041917,120]
[408838149,1774338707553,-500.0,0.00041917,120]
[408838150,1774338707563,-500.0,0.00041917,120]
[408838151,1774338707572,-223.34240662,0.00041917,120]
[408838152,1774338707582,-174.18197193,0.00041917,120]
[408838153,1774338707591,-500.0,0.00041917,120]
[408838154,1774338707600,-612.36100658,0.00041917,120]
[408838155,1774338707612,-500.0,0.00041917,120]
[408838156,1774338707621,-705.66,0.00041917,120]
[408838157,1774338707630,-500.0,0.00041917,120]
[408838158,1774338707639,-500.0,0.00041917,120]
[408838159,1774338707649,-943.74,0.00041917,120]
[408838160,1774338707658,-500.0,0.00041917,120]
[408838161,1774338707667,-500.0,0.00041917,120]
[408838162,1774338707677,-500.0,0.00041917,120]
[408838163,1774338707687,-500.0,0.00041917,120]
[408838164,1774338707696,-507.3,0.00041917,120]
[408838165,1774338707705,-500.0,0.00041917,120]
[408838166,1774338707715,-568.39,0.00041917,120]
[408838167,1774338707724,-500.0,0.00041917,120]
[408838168,1774338707733,-729.64,0.00041917,120]
[408838169,1774338707742,-500.0,0.00041917,120]
[408838170,1774338707751,-639.9,0.00041917,120]
[408838171,1774338707761,-500.0,0.00041917,120]
[408838172,1774338707770,-500.0,0.00041917,120]
[408838173,1774338707778,-500.0,0.00041917,30]
[408838174,1774338707787,-500.0,0.00041917,14]
[408838175,1774338707796,-500.0,0.00041917,120]
[408838176,1774338707805,-500.0,0.00041917,30]
[408838177,1774338707815,-651.21,0.00041917,120]
[408838178,1774338707823,-500.0,0.00041917,120]
[408838179,1774338707832,-500.0,0.00041917,120]
[408838180,1774338707841,-524.6,0.00041917,120]
[408838181,1774338707850,-978.66,0.00041917,120]
[408838182,1774338707860,-500.0,0.00041917,30]
[408838183,1774338707869,-1180.13,0.00041917,120]
[408838184,1774338707878,-500.0,0.00041917,120]
[408838185,1774338707888,-574.37,0.00041917,120]
[408838186,1774338707898,-500.0,0.00041917,120]
[408838187,1774338707907,-1281.45,0.00041917,120]
[408838188,1774338707916,-500.0,0.00041917,120]
[408838189,1774338707928,-1329.75,0.00041917,120]
[408838190,1774338707939,-500.0,0.00041917,120]
[408838191,1774338707948,-500.0,0.00041917,120]
[408838192,1774338707958,-500.0,0.00041917,90]
[408838193,1774338707967,-500.0,0.00041917,120]
[408838194,1774338707976,-500.0,0.00041917,120]
[408838195,1774338707985,-500.0,0.00041917,120]
[408838196,1774338707994,-349.06733272,0.00041917,120]
[408838197,1774338708002,-500.0,0.00041917,120]
[408838198,1774338708010,-880.66,0.00041917,5]
[408838199,1774338708018,-599.98,0.00041917,120]
[408838200,1774338708026,-1076.85,0.00041917,120]
[408838201,1774338708034,-651.22,0.00041917,120]
[408838202,1774338708042,-500.0,0.00041917,120]
[408838203,1774338708050,-500.0,0.00041917,120]
[408838204,1774338708058,-500.0,0.00041917,120]
[408838205,1774338708066,-539.9,0.00041917,120]
[408838206,1774338708075,-604.85,0.00041917,120]
[408838207,1774338708083,-617.48,0.00041917,120]
[408838208,1774338708091,-500.0,0.00041917,120]
[408838209,1774338708099,-766.13,0.00041917,120]
[408838210,1774338708108,-500.0,0.00041917,120]
[408838211,1774338708116,-835.56,0.00041917,120]
[408838212,1774338708125,-792.41,0.00041917,120]
[408838213,1774338708133,-500.0,0.00041917,120]
[408838214,1774338708141,-500.0,0.00041917,120]
[408838215,1774338708150,-500.0,0.00041917,120]
[408838216,1774338708159,-500.0,0.00041917,120]
[408838217,1774338708168,-500.0,0.00041917,120]
[408838218,1774338708177,-624.35184261,0.00041917,120]
[408838219,1774338708186,-500.0,0.00041917,120]
[408838220,1774338708195,-500.0,0.00041917,120]
[408838221,1774338708203,-500.0,0.00041917,120]
[408838222,1774338708212,-618.14170124,0.00041917,120]
[408838223,1774338708222,-1234.56,0.00041917,120]
[408838224,1774338708231,-500.0,0.00041917,120]
[408838225,1774338708240,-890.18,0.00041917,120]
[408838226,1774338708249,-500.0,0.00041917,120]
[408838227,1774338708258,-500.0,0.00041917,120]
[408838228,1774338708268,-500.0,0.00041917,120]
[408838229,1774338708277,-1024.48,0.00041917,120]
[408838230,1774338708286,-224.28056219,0.00041917,120]
[408838231,1774338708295,-500.0,0.00041917,120]
[408838232,1774338708304,-500.0,0.00041917,120]
[408838233,1774338708313,-500.0,0.00041917,120]
[408838234,1774338708322,-500.0,0.00041917,120]
[408838235,1774338708331,-172.35731598,0.00041917,120]
[408838236,1774338708340,-500.0,0.00041917,120]
[408838237,1774338708349,-171.59987782,0.00041917,120]
[408838238,1774338708359,-500.0,0.00041917,120]
[408838239,1774338708369,-2135.18,0.00041917,120]
[408838240,1774338708382,-766.51,0.00041917,120]
[408838241,1774338708391,-500.0,0.00041917,120]
[408838242,1774338708400,-500.0,0.00041917,120]
[408838243,1774338708409,-677.14,0.00041917,120]
[408838244,1774338708419,-500.0,0.00041917,120]
[408838245,1774338708427,-563.34,0.00041917,120]
[408838246,1774338708437,-168.88255371,0.00041917,120]
[408838247,1774338708448,-1402.94,0.00041917,120]
[408838248,1774338708457,-761.77,0.00041917,120]
[408838249,1774338708466,-500.0,0.00041917,120]
[408838250,1774338708475,-1465.28,0.00041917,120]
[408838251,1774338708484,-500.0,0.00041917,120]
[408838252,1774338708493,-500.0,0.00041917,120]
[408838253,1774338708502,-500.0,0.00041917,120]
[408838254,1774338708511,-304.39171363,0.00041917,120]
[408838255,1774338708520,-500.0,0.00041917,120]
[408838256,1774338708529,-647.77165397,0.00041917,120]
[408838257,1774338708538,-598.21,0.00041917,120]
[408838258,1774338708547,-500.0,0.00041917,120]
[408838259,1774338708556,-500.0,0.00041917,120]
[408838260,1774338708565,-500.0,0.00041917,120]
[408838261,1774338708575,-1412.93,0.00041917,120]
[408838262,1774338708584,-163.41633175,0.00041917,120]
[408838263,1774338708593,-500.0,0.00041917,120]
[408838264,1774338708602,-624.69313221,0.00041917,120]
[408838265,1774338708613,-500.0,0.00041917,120]
[408838266,1774338708623,-500.0,0.00041917,7]
[408838267,1774338708631,-500.0,0.00041917,120]
[408838268,1774338708640,-500.0,0.00041917,120]
[408838269,1774338708649,-500.0,0.00041917,120]
[408838270,1774338708658,-846.4,0.00041917,120]
[408838271,1774338708668,-500.0,0.00041917,120]
[408838272,1774338708677,-500.0,0.00041917,120]
[408838273,1774338708686,-804.53,0.00041917,120]
[408838274,1774338708695,-614.78882213,0.00041917,120]
[408838275,1774338708704,-967.16,0.00041917,120]
[408838276,1774338708714,-862.09,0.00041917,120]
[408838277,1774338708723,-500.0,0.00041917,120]
[408838278,1774338708732,-649.68,0.00041917,120]
[408838279,1774338708741,-897.41,0.00041917,120]
[408838280,1774338708750,-500.0,0.00041917,120]
[408838281,1774338708759,-500.0,0.00041917,120]
[408838282,1774338708769,-500.0,0.00041917,120]
[408838283,1774338708779,-500.0,0.00041917,120]
[408838284,1774338708789,-1647.3,0.00041917,120]
[408838285,1774338708798,-500.0,0.00041917,120]
[408838286,1774338708807,-500.0,0.00041917,120]
[408838287,1774338708816,-500.0,0.00041917,120]
[408838288,1774338708825,-500.0,0.00041917,120]
[408838289,1774338708833,-500.0,0.00041917,120]
[408838290,1774338708841,-500.0,0.00041917,120]
[408838291,1774338708849,-932.54,0.00041917,120]
[408838292,1774338708857,-500.0,0.00041917,120]
[408838293,1774338708865,-500.0,0.00041917,60]
[408838294,1774338708874,-1817.92,0.00041917,120]
[408838295,1774338708883,-500.0,0.00041917,120]
[408838296,1774338708892,-500.0,0.00041917,120]
[408838297,1774338708901,-500.0,0.00041917,120]
[408838298,1774338708910,-500.0,0.00041917,120]
[408838299,1774338708919,-500.0,0.00041917,120]
[408838300,1774338708929,-581.23737194,0.00041917,120]
[408838301,1774338708939,-228.64209417,0.00041917,120]
[408838302,1774338708949,-500.0,0.00041917,120]
[408838303,1774338708958,-1328.91,0.00041917,120]
[408838304,1774338708969,-1294.19,0.00041917,120]
[408838305,1774338708979,-500.0,0.00041917,120]
[408838306,1774338708988,-500.0,0.00041917,120]
[408838307,1774338708998,-302.98328685,0.00041917,120]
[408838308,1774338709007,-500.0,0.00041917,120]
[408838309,1774338709016,-505.67084254,0.00041917,120]
[408838310,1774338709024,-500.0,0.00041917,120]
[408838311,1774338709034,-3681.23,0.00041917,120]
[408838312,1774338709044,-500.0,0.00041917,120]
[408838313,1774338709054,-500.0,0.00041917,120]
[408838314,1774338709063,-500.0,0.00041917,120]
[408838315,1774338709072,-500.0,0.00041917,120]
[408838316,1774338709082,-644.74,0.00041917,120]
[408838317,1774338709091,-500.0,0.00041917,120]
[408838318,1774338709100,-688.63,0.00041917,120]
[408838319,1774338709111,-500.0,0.00041917,120]
[408838320,1774338709120,-572.14,0.00041917,120]
[408838321,1774338709129,-500.0,0.00041917,120]
[408838322,1774338709139,-500.0,0.00041917,120]
[408838323,1774338709147,-500.0,0.00041917,120]
[408838324,1774338709156,-500.0,0.00041917,120]
[408838325,1774338709167,-500.0,0.00041917,120]
[408838326,1774338709177,-1109.47,0.00041917,120]
[408838327,1774338709187,-500.0,0.00041917,120]
[408838328,1774338709197,-264.18608143,0.00041917,120]
[408838329,1774338709207,-500.0,0.00041917,120]
[408838330,1774338709217,-500.0,0.00041917,120]
[408838331,1774338709227,-500.0,0.00041917,120]
[408838332,1774338709236,-500.0,0.00041917,120]
[408838333,1774338709246,-500.0,0.00041917,120]
[408838334,1774338709256,-500.0,0.00041917,120]
[408838335,1774338709264,-500.0,0.00041917,120]
[408838336,1774338709274,-1361.64,0.00041917,120]
[408838337,1774338709285,-500.0,0.00041917,120]
[408838338,1774338709294,-1113.98,0.00041917,120]
[408838339,1774338709303,-500.0,0.00041917,120]
[408838340,1774338709312,-500.0,0.00041917,120]
[408838341,1774338709321,-500.0,0.00041917,120]
[408838342,1774338709330,-500.0,0.00041917,120]
[408838343,1774338709339,-500.0,0.00041917,120]
[408838344,1774338709348,-500.0,0.00041917,120]
[408838345,1774338709357,-500.0,0.00041917,120]
[408838346,1774338709371,-500.0,0.00041917,120]
[408838347,1774338709380,-804.84,0.00041917,120]
[408838348,1774338709389,-540.06066681,0.00041917,120]
[408838349,1774338709398,-500.0,0.00041917,120]
[408838350,1774338709407,-587.8,0.00041917,120]
[408838351,1774338709417,-166.52089252,0.00041917,120]
[408838352,1774338709427,-895.35,0.00041917,120]
[408838353,1774338709436,-274.98240284,0.00041917,120]
[408838354,1774338709445,-500.0,0.00041917,120]
[408838355,1774338709455,-500.0,0.00041917,15]
[408838356,1774338709463,-500.0,0.00041917,120]
[408838357,1774338709472,-640.6,0.00041917,120]
[408838358,1774338709483,-500.0,0.00041917,120]
[408838359,1774338709504,-500.0,0.00041917,120]
[408838360,1774338709526,-500.0,0.00041917,120]
[408838361,1774338709537,-500.0,0.00041917,120]
[408838362,1774338709546,-500.0,0.00041917,120]
[408838363,1774338709556,-500.0,0.00041917,120]
[408838364,1774338709565,-500.0,0.00041917,120]
[408838365,1774338709573,-500.0,0.00041917,2]
[408838366,1774338709583,-1353.62,0.00041917,120]
[408838367,1774338709591,-500.0,0.00041917,120]
[408838368,1774338709600,-500.0,0.00041917,120]
[408838369,1774338709609,-663.05,0.00041917,120]
[408838370,1774338709618,-500.0,0.00041917,120]
[408838371,1774338709627,-500.0,0.00041917,120]
[408838372,1774338709636,-2022.99,0.00041917,120]
[408838373,1774338709645,-500.0,0.00041917,120]
[408838374,1774338709654,-500.0,0.00041917,120]
[408838375,1774338709664,-500.0,0.00041917,120]
[408838376,1774338709673,-993.61,0.00041917,120]
[408838377,1774338709683,-500.0,0.00041917,120]
[408838378,1774338709692,-500.0,0.00041917,120]
[408838379,1774338709702,-500.0,0.00041917,120]
[408838380,1774338709711,-500.0,0.00041917,120]
[408838381,1774338709721,-500.0,0.00041917,120]
[408838382,1774338709730,-526.3,0.00041917,120]
[408838383,1774338709739,-500.0,0.00041917,120]
[408838384,1774338709748,-500.0,0.00041917,120]
[408838385,1774338709757,-803.74,0.00041917,120]
[408838386,1774338709767,-500.0,0.00041917,120]
[408838387,1774338709776,-500.0,0.00041917,120]
[408838388,1774338709784,-500.0,0.00041917,120]
[408838389,1774338709794,-593.39,0.00041917,120]
[408838390,1774338709803,-773.48,0.00041917,120]
[408838391,1774338709812,-500.0,0.00041917,120]
[408838392,1774338709821,-500.0,0.00041917,120]
[408838393,1774338709830,-164.68969414,0.00041917,120]
[408838394,1774338709840,-500.0,0.00041917,120]
[408838395,1774338709849,-500.0,0.00041917,120]
[408838396,1774338709859,-500.0,0.00041917,120]
[408838397,1774338709868,-500.0,0.00041917,120]
[408838398,1774338709877,-500.0,0.00041917,120]
[408838399,1774338709886,-1169.17,0.00041917,120]
[408838400,1774338709895,-500.0,0.00041917,120]
[408838401,1774338709904,-500.0,0.00041917,120]
[408838402,1774338709913,-500.0,0.00041917,120]
[408838403,1774338709922,-500.0,0.00041917,120]
[408838404,1774338709932,-500.0,0.00041917,120]
[408838405,1774338709950,-500.0,0.00041917,120]
[408838406,1774338709960,-500.0,0.00041917,120]
[408838407,1774338709969,-1339.98,0.00041917,120]
[408838408,1774338709979,-500.0,0.00041917,120]
[408838409,1774338709991,-500.0,0.00041917,120]
[408838410,1774338710001,-241.82742034,0.00041917,120]
[408838411,1774338710010,-500.0,0.00041917,120]
[408838412,1774338710021,-174.24373728,0.00041917,120]
[408838413,1774338710031,-599.34,0.00041917,120]
[408838414,1774338710041,-500.0,0.00041917,120]
[408838415,1774338710052,-551.15,0.00041917,120]
[408838416,1774338710061,-500.0,0.00041917,120]
[408838417,1774338710070,-1698.32,0.00041917,120]
[408838418,1774338710081,-422.67240964,0.00041917,30]
[408838419,1774338710091,-1450.66,0.00041917,120]
[408838420,1774338710099,-500.0,0.00041917,120]
[408838421,1774338710109,-500.0,0.00041917,120]
[408838422,1774338710118,-500.0,0.00041917,120]
[408838423,1774338710128,-157.645705,0.00041917,120]
[408838424,1774338710138,-818.03,0.00041917,120]
[408838425,1774338710148,-500.0,0.00041917,120]
[408838426,1774338710157,-620.94,0.00041917,2]
[408838427,1774338710170,-500.0,0.00041917,120]
[408838428,1774338710181,-500.0,0.00041917,120]
[408838429,1774338710192,-500.0,0.00041917,120]
[408838430,1774338710204,-500.0,0.00041917,120]
[408838431,1774338710213,-500.0,0.00041917,120]
[408838432,1774338710225,-500.0,0.00041917,120]
[408838433,1774338710236,-500.0,0.00041917,120]
[408838434,1774338710247,-500.0,0.00041917,120]
[408838435,1774338710256,-500.0,0.00041917,120]
[408838436,1774338710266,-500.0,0.00041917,120]
[408838437,1774338710276,-500.0,0.00041917,120]
[408838438,1774338710286,-1515.34,0.00041917,120]
[408838439,1774338710296,-500.0,0.00041917,120]
[408838440,1774338710305,-500.0,0.00041917,120]
[408838441,1774338710317,-500.0,0.00041917,120]
[408838442,1774338710328,-1009.33,0.00041917,120]
[408838443,1774338710338,-500.0,0.00041917,120]
[408838444,1774338710347,-4192.59,0.00041917,120]
[408838445,1774338710356,-500.0,0.00041917,120]
[408838446,1774338710366,-500.0,0.00041917,120]
[408838447,1774338710378,-500.0,0.00041917,120]
[408838448,1774338710387,-2475.9,0.00041917,120]
[408838449,1774338710396,-500.0,0.00041917,120]
[408838450,1774338710405,-500.0,0.00041917,120]
[408838451,1774338710415,-500.0,0.00041917,120]
[408838452,1774338710425,-2035.37,0.00041917,120]
[408838453,1774338710437,-500.0,0.00041917,120]
[408838454,1774338710450,-500.0,0.00041917,120]
[408838455,1774338710459,-500.0,0.00041917,120]
[408838456,1774338710468,-500.0,0.00041917,120]
[408838457,1774338710477,-857.75,0.00041917,120]
[408838458,1774338710486,-944.17,0.00041917,120]
[408838459,1774338710496,-500.0,0.00041917,120]
[408838460,1774338710506,-500.0,0.00041917,120]
[408838461,1774338710515,-500.0,0.00041917,120]
[408838462,1774338710523,-1317.86,0.00041917,30]
[408838463,1774338710533,-500.0,0.00041917,120]
[408838464,1774338710542,-500.0,0.00041917,120]
[408838465,1774338710552,-826.35,0.00041917,120]
[408838466,1774338710560,-1144.87,0.00041917,120]
[408838467,1774338710570,-588.23,0.00041917,120]
[408838468,1774338710579,-500.0,0.00041917,120]
[408838469,1774338710588,-564.21680662,0.00041917,120]
[408838470,1774338710597,-500.0,0.00041917,120]
[408838471,1774338710607,-500.0,0.00041917,120]
[408838472,1774338710617,-500.0,0.00041917,120]
[408838473,1774338710626,-500.0,0.00041917,120]
[408838474,1774338710635,-563.58740922,0.00041917,120]
[408838475,1774338710644,-500.0,0.00041917,120]
[408838476,1774338710653,-895.15,0.00041917,120]
[408838477,1774338710663,-800.0,0.00041917,120]
[408838478,1774338710672,-252.74670229,0.00041917,120]
[408838479,1774338710683,-500.0,0.00041917,120]
[408838480,1774338710692,-1197.62,0.00041917,120]
[408838481,1774338710701,-500.0,0.00041917,120]
[408838482,1774338710710,-1494.6,0.00041917,120]
[408838483,1774338710719,-1086.62,0.00041917,120]
[408838484,1774338710729,-500.0,0.00041917,120]
[408838485,1774338710738,-500.0,0.00041917,120]
[408838486,1774338710747,-500.0,0.00041917,120]
[408838487,1774338710755,-500.0,0.00041917,120]
[408838488,1774338710764,-500.0,0.00041917,120]
[408838489,1774338710773,-500.0,0.00041917,120]
[408838490,1774338710783,-946.8,0.00041917,120]
[408838491,1774338710792,-500.0,0.00041917,120]
[408838492,1774338710801,-713.74,0.00041917,120]